bitfinex/quotes_SOLUSD_20250318
["timestamp","ask_amount","ask_price","bid_price","bid_amount"]
[1742307331337,25.97986693,122.63,122.6,0.03]
[1742307332150,25.97986693,122.62,122.6,0.03]
[1742307333027,25.97986693,122.61,122.6,0.03]
[1742307333950,26.04286693,122.62,122.6,0.03]
[1742307334649,25.97986693,122.61,122.6,0.03]
[1742307335344,26.04286693,122.62,122.6,0.03]
[1742307335739,25.97986693,122.61,122.6,0.03]
[1742307335930,0.063,122.62,122.6,0.03]
[1742307335931,26.04286693,122.62,122.6,0.03]
[1742307336128,0.063,122.62,122.6,0.03]
[1742307336327,0.063,122.62,122.6,26.00986693]
[1742307336650,0.063,122.62,122.61,32.4686285]
[1742307337348,0.063,122.62,122.61,6.48876157]
[1742307337941,0.063,122.62,122.61,32.4686285]
[1742307338450,0.063,122.62,122.61,6.48876157]
[1742307339530,0.063,122.62,122.61,51.4026005]
[1742307340256,0.063,122.62,122.61,25.42273357]
[1742307340445,0.063,122.62,122.61,6.48876157]
[1742307341036,0.063,122.62,122.61,51.4026005]
[1742307342251,0.063,122.62,122.61,25.42273357]
[1742307342440,0.063,122.62,122.61,6.48876157]
[1742307342826,26.04286693,122.62,122.6,0.17216157]
[1742307343028,26.04286693,122.62,122.6,0.03]
[1742307343656,0.063,122.62,122.6,0.03]
[1742307345458,0.063,122.62,122.61,0.14216157]
[1742307345651,0.063,122.62,122.61,26.1220285]
[1742307346465,0.063,122.62,122.61,25.97986693]
[1742307346881,0.063,122.62,122.61,26.1220285]
[1742307347671,0.063,122.62,122.61,45.0560005]
[1742307347842,0.063,122.62,122.61,53.1360005]
[1742307348038,0.063,122.62,122.61,59.3721005]
[1742307350734,0.063,122.62,122.61,60.9465005]
[1742307352088,0.063,122.62,122.61,52.8665005]
[1742307352240,0.063,122.62,122.61,60.9465005]
[1742307353639,0.063,122.65,122.64,20.14216157]
[1742307353860,0.063,122.65,122.64,72.38621857]
[1742307354168,0.063,122.65,122.64,46.40635164]
[1742307354760,0.063,122.65,122.64,65.0560005]
[1742307355164,0.063,122.65,122.64,98.58516743]
[1742307356465,0.063,122.65,122.64,72.6053005]
[1742307356845,0.063,122.65,122.64,98.58516743]
[1742307357565,0.063,122.65,122.64,72.6053005]
[1742307357971,0.063,122.65,122.64,98.58516743]
[1742307358167,0.063,122.65,122.64,72.6053005]
[1742307359870,0.063,122.65,122.64,98.58516743]
[1742307361172,0.063,122.65,122.64,72.6053005]
[1742307361468,0.063,122.65,122.64,0.14216157]
[1742307361654,0.063,122.65,122.62,0.14216157]
[1742307361856,26.04286693,122.65,122.62,0.14216157]
[1742307362569,0.063,122.65,122.62,0.14216157]
[1742307362880,0.063,122.65,122.64,0.14216157]
[1742307363050,0.063,122.65,122.61,0.20516157]
[1742307363051,26.04286693,122.65,122.61,0.20516157]
[1742307363250,26.04286693,122.65,122.61,0.48948471]
[1742307363559,0.063,122.65,122.61,26.46935164]
[1742307364171,0.063,122.65,122.63,0.42648471]
[1742307364363,0.063,122.65,122.63,26.26419007]
[1742307364677,0.063,122.65,122.64,53.1160005]
[1742307364966,0.063,122.65,122.64,79.09586743]
[1742307365171,0.063,122.65,122.64,53.1160005]
[1742307365952,0.063,122.65,122.64,79.09586743]
[1742307366850,0.063,122.65,122.64,53.1160005]
[1742307367360,0.063,122.65,122.64,79.09586743]
[1742307367764,0.063,122.65,122.64,53.1160005]
[1742307368651,0.063,122.65,122.64,79.09586743]
[1742307369366,0.063,122.65,122.64,52.83167736]
[1742307369569,0.063,122.65,122.64,53.1160005]
[1742307369767,0.063,122.65,122.64,0.14216157]
[1742307369971,0.063,122.65,122.62,0.14216157]
[1742307370279,0.063,122.65,122.62,0.20516157]
[1742307370577,0.063,122.65,122.62,0.48948471]
[1742307370756,0.063,122.65,122.62,26.46935164]
[1742307371352,0.063,122.65,122.62,0.063]
[1742307371353,25.97986693,122.63,122.62,0.063]
[1742307372964,44.62951579,122.63,122.62,0.063]
[1742307373279,126.57474886,122.61,122.58,0.03]
[1742307373466,25.97986693,122.59,122.58,0.03]
[1742307375482,41.65268536,122.59,122.58,0.03]
[1742307375968,41.65268536,122.59,122.57,0.03]
[1742307375969,20.0,122.56,122.53,0.03]
[1742307376274,81.86723422,122.56,122.53,0.03]
[1742307377067,24.77474886,122.54,122.53,0.03]
[1742307377381,38.64964886,122.52,122.51,0.03]
[1742307377581,121.95501958,122.52,122.51,0.03]
[1742307377882,130.01501958,122.52,122.51,0.03]
[1742307378683,18.79181043,122.51,122.48,0.063]
[1742307378892,1.5649,122.49,122.48,0.063]
[1742307379057,18.64964886,122.48,122.47,0.03]
[1742307379260,68.36233422,122.48,122.47,0.03]
[1742307379684,49.71268536,122.48,122.47,0.03]
[1742307379883,41.65268536,122.48,122.47,0.03]
[1742307380591,41.65268536,122.51,122.47,0.03]
[1742307380882,41.65268536,122.54,122.49,41.65268536]
[1742307381123,41.65268536,122.54,122.5,0.14216157]
[1742307381475,41.65268536,122.52,122.49,0.14216157]
[1742307381676,41.65268536,122.51,122.48,8.06]
[1742307381877,18.64964886,122.55,122.5,0.03]
[1742307382077,41.65268536,122.51,122.5,0.03]
[1742307382780,41.65268536,122.52,122.5,0.03]
[1742307382981,41.65268536,122.51,122.5,0.03]
[1742307383679,41.65268536,122.52,122.5,0.03]
[1742307383880,41.65268536,122.53,122.5,0.03]
[1742307384282,123.51568536,122.54,122.5,0.03]
[1742307384584,0.063,122.54,122.51,0.14216157]
[1742307384788,0.063,122.54,122.51,41.65268536]
[1742307384993,0.063,122.54,122.52,0.14216157]
[1742307385691,0.063,122.54,122.51,0.28432314]
[1742307386073,0.063,122.54,122.52,0.14216157]
[1742307386274,0.063,122.54,122.53,0.14216157]
[1742307386473,0.063,122.54,122.53,42.07917007]
[1742307387286,0.063,122.54,122.53,0.14216157]
[1742307387877,0.063,122.54,122.52,8.06]
[1742307388484,0.063,122.54,122.53,0.14216157]
[1742307390011,0.063,122.54,122.53,0.42648471]
[1742307390296,0.063,122.54,122.53,0.14216157]
[1742307390893,0.063,122.54,122.52,8.06]
[1742307391389,0.063,122.54,122.5,41.68268536]
[1742307391699,41.71568536,122.54,122.5,0.17216157]
[1742307392690,41.71568536,122.54,122.5,0.45648471]
[1742307392880,0.063,122.54,122.5,42.10917007]
[1742307393081,0.063,122.54,122.52,0.14216157]
[1742307393389,0.063,122.54,122.5,42.10917007]
[1742307394179,41.65268536,122.53,122.5,0.03]
[1742307394695,41.71568536,122.54,122.5,0.03]
[1742307395007,41.65268536,122.53,122.5,0.03]
[1742307395506,41.71568536,122.54,122.5,0.03]
[1742307396405,0.063,122.54,122.51,41.65268536]
[1742307396783,0.063,122.54,122.52,0.14216157]
[1742307397211,0.063,122.54,122.51,41.65268536]
[1742307397529,41.71568536,122.54,122.5,0.31432314]
[1742307398082,41.65268536,122.52,122.5,0.03]
[1742307398606,41.65268536,122.53,122.5,0.03]
[1742307398798,0.063,122.54,122.5,41.68268536]
[1742307399202,41.71568536,122.54,122.5,0.03]
[1742307399399,0.063,122.54,122.51,0.14216157]
[1742307399598,0.063,122.54,122.51,0.42648471]
[1742307399991,0.063,122.54,122.51,41.9370085]
[1742307400511,0.063,122.54,122.52,0.14216157]
[1742307400807,0.063,122.54,122.51,0.28432314]
[1742307401001,0.063,122.54,122.51,60.72881893]
[1742307401203,0.063,122.54,122.53,0.14216157]
[1742307402208,0.063,122.54,122.53,42.07917007]
[1742307402594,0.063,122.54,122.53,60.72881893]
[1742307405011,0.063,122.54,122.53,0.14216157]
[1742307405207,0.063,122.54,122.53,0.42648471]
[1742307405410,0.063,122.54,122.53,45.1039494]
[1742307406711,0.063,122.54,122.53,26.45430054]
[1742307407592,0.063,122.54,122.53,45.1039494]
[1742307412193,0.063,122.54,122.51,18.79181043]
[1742307412522,0.063,122.54,122.53,0.14216157]
[1742307412890,0.063,122.54,122.53,26.1699774]
[1742307413093,0.063,122.54,122.53,26.45430054]
[1742307413308,0.063,122.54,122.53,45.1039494]
[1742307415096,0.063,122.54,122.53,60.71336909]
[1742307416221,0.063,122.54,122.53,19.07613357]
[1742307416416,0.063,122.54,122.53,0.42648471]
[1742307416725,0.063,122.54,122.53,42.06372023]
[1742307418126,0.063,122.54,122.53,50.12372023]
[1742307418644,0.063,122.54,122.53,8.48648471]
[1742307419605,0.063,122.54,122.53,8.20216157]
[1742307420409,0.063,122.54,122.53,8.06]
[1742307420825,0.063,122.54,122.51,0.14216157]
[1742307421150,41.63723552,122.52,122.5,0.03]
[1742307421425,81.863,122.54,122.5,0.03]
[1742307421426,41.63723552,122.51,122.5,0.03]
[1742307421801,49.88103552,122.51,122.5,0.03]
[1742307422207,68.53068438,122.51,122.5,0.03]
[1742307422430,81.8,122.5,122.48,0.03]
[1742307422738,60.28688438,122.49,122.48,0.03]
[1742307423122,76.51098438,122.49,122.47,0.03]
[1742307423330,41.63723552,122.44,122.39,8.20216157]
[1742307423629,41.63723552,122.43,122.39,0.14216157]
[1742307423820,7.8946,122.45,122.41,20.4228]
[1742307424225,1.6363,122.45,122.41,62.06003552]
[1742307425044,6.4836,122.48,122.43,28.5877]
[1742307425230,41.63723552,122.48,122.44,41.77939709]
[1742307425436,41.63723552,122.47,122.43,70.22493552]
[1742307425628,41.63723552,122.47,122.44,0.14216157]
[1742307426236,41.63723552,122.46,122.43,28.5877]
[1742307427547,41.63723552,122.45,122.43,28.5877]
[1742307427731,41.63723552,122.46,122.43,28.5877]
[1742307429046,81.8,122.48,122.43,28.5877]
[1742307429350,123.43723552,122.47,122.43,28.5877]
[1742307429529,81.8,122.47,122.43,28.6177]
[1742307429844,123.43723552,122.47,122.43,28.6177]
[1742307430035,41.63723552,122.46,122.43,28.6177]
[1742307430424,41.63723552,122.45,122.43,28.6177]
[1742307430945,41.63723552,122.44,122.43,28.6177]
[1742307431153,41.63723552,122.45,122.43,28.6177]
[1742307431339,41.63723552,122.45,122.43,0.03]
[1742307431541,123.43723552,122.46,122.43,0.03]
[1742307431740,81.8,122.46,122.43,0.17216157]
[1742307431940,81.8,122.46,122.43,41.66723552]
[1742307432538,53.0124,122.46,122.44,0.14216157]
[1742307432736,41.63723552,122.49,122.45,41.63723552]
[1742307432937,41.63723552,122.49,122.45,0.14216157]
[1742307433127,41.63723552,122.48,122.44,28.06]
[1742307433332,41.63723552,122.47,122.44,28.06]
[1742307433664,41.63723552,122.48,122.44,28.06]
[1742307434035,41.63723552,122.46,122.44,8.06]
[1742307434231,41.63723552,122.47,122.44,8.06]
[1742307435037,41.63723552,122.46,122.44,8.06]
[1742307436351,41.63723552,122.46,122.43,0.03]
[1742307437245,47.8377,122.48,122.43,0.03]
[1742307437450,26.07860374,122.47,122.43,0.03]
[1742307437955,26.07860374,122.46,122.43,0.03]
[1742307438536,1.5997,122.47,122.43,0.03]
[1742307438847,26.07860374,122.44,122.43,0.03]
[1742307439048,73.91630374,122.44,122.43,0.03]
[1742307445058,47.8377,122.44,122.43,0.03]
[1742307445959,26.07860374,122.46,122.43,0.03]
[1742307446264,26.07860374,122.45,122.43,0.03]
[1742307446849,26.07860374,122.44,122.43,0.03]
[1742307447540,20.0,122.45,122.43,0.03]
[1742307447744,26.07860374,122.44,122.43,0.03]
[1742307447943,46.07860374,122.45,122.43,0.03]
[1742307448250,26.07860374,122.44,122.43,0.03]
[1742307449760,44.7282526,122.44,122.43,0.03]
[1742307449977,52.8954526,122.44,122.43,0.03]
[1742307450167,44.7282526,122.44,122.43,0.03]
[1742307451376,52.7882526,122.44,122.43,0.03]
[1742307452178,61.38193731,122.44,122.43,0.03]
[1742307452542,53.07257574,122.44,122.43,0.03]
[1742307452742,53.21473731,122.44,122.43,0.03]
[1742307452977,52.7882526,122.44,122.43,0.03]
[1742307453545,34.13860374,122.44,122.43,0.03]
[1742307456273,52.7882526,122.44,122.43,0.03]
[1742307456568,18.64964886,122.43,122.37,28.6314]
[1742307456775,26.07860374,122.4,122.37,28.6314]
[1742307457470,26.07860374,122.42,122.38,0.14216157]
[1742307458171,26.07860374,122.42,122.38,8.20216157]
[1742307458347,26.07860374,122.42,122.39,28.5971]
[1742307461154,26.07860374,122.41,122.39,28.5971]
[1742307462384,26.07860374,122.42,122.39,28.5971]
[1742307463054,26.07860374,122.4,122.39,28.5971]
[1742307463654,26.07860374,122.41,122.39,28.5971]
[1742307464073,26.07860374,122.42,122.39,28.5971]
[1742307464766,81.8,122.44,122.39,28.5971]
[1742307464965,26.07860374,122.42,122.39,28.5971]
[1742307466259,26.07860374,122.41,122.39,28.6271]
[1742307467185,26.07860374,122.4,122.39,28.6271]
[1742307467480,26.07860374,122.4,122.39,8.2006]
[1742307468767,26.07860374,122.4,122.39,0.03]
[1742307472077,52.15720748,122.4,122.39,0.03]
[1742307472873,70.80685634,122.4,122.39,0.03]
[1742307474372,26.07860374,122.4,122.39,0.03]
[1742307474968,81.8,122.41,122.39,0.03]
[1742307475167,26.07860374,122.4,122.39,0.03]
[1742307476087,107.87860374,122.4,122.39,0.03]
[1742307478487,81.8,122.4,122.39,0.03]
[1742307479492,81.8,122.39,122.37,0.03]
[1742307479688,44.87041417,122.38,122.35,0.03]
[1742307479989,26.07860374,122.36,122.35,0.03]
[1742307480502,20.0,122.33,122.3,8.206]
[1742307480803,107.87860374,122.32,122.3,8.206]
[1742307481168,81.8,122.32,122.3,0.03]
[1742307481593,107.87860374,122.32,122.3,0.03]
[1742307481899,81.8,122.32,122.3,0.03]
[1742307482268,26.07860374,122.33,122.3,0.03]
[1742307482597,107.87860374,122.34,122.3,0.03]
[1742307482775,26.07860374,122.35,122.3,26.25076531]
[1742307482981,26.07860374,122.34,122.3,0.03]
[1742307483180,26.07860374,122.33,122.3,0.03]
[1742307483906,26.07860374,122.34,122.3,0.03]
[1742307484802,26.07860374,122.33,122.3,0.03]
[1742307485295,26.07860374,122.33,122.3,8.2066]
[1742307485700,26.07860374,122.31,122.3,8.2066]
[1742307486496,26.07860374,122.32,122.3,8.2066]
[1742307486714,26.07860374,122.31,122.3,8.2066]
[1742307487121,26.07860374,122.31,122.3,0.03]
[1742307488070,34.25450374,122.31,122.3,0.03]
[1742307488269,53.33063731,122.31,122.3,0.03]
[1742307488574,100.44964886,122.3,122.25,8.1796]
[1742307488895,26.07860374,122.27,122.25,8.1796]
[1742307489103,81.8,122.29,122.25,8.1796]
[1742307489674,81.8,122.29,122.25,28.6294]
[1742307489881,81.8,122.32,122.27,1.5144]
[1742307490074,107.87860374,122.31,122.27,1.5144]
[1742307491212,107.87860374,122.31,122.27,1.5444]
[1742307491505,107.87860374,122.31,122.28,28.6227]
[1742307491995,81.8,122.31,122.28,54.70130374]
[1742307492199,4.22202637,122.35,122.29,26.22076531]
[1742307492200,107.87860374,122.34,122.29,26.22076531]
[1742307492370,107.87860374,122.34,122.3,8.06]
[1742307492985,107.87860374,122.34,122.3,34.13860374]
[1742307493185,81.8,122.34,122.3,34.13860374]
[1742307493387,107.87860374,122.34,122.3,34.13860374]
[1742307493582,107.87860374,122.34,122.3,8.06]
[1742307493794,107.87860374,122.34,122.31,28.6157]
[1742307495296,26.07860374,122.33,122.31,28.6157]
[1742307495494,107.87860374,122.34,122.31,28.6157]
[1742307495993,26.07860374,122.33,122.31,28.6157]
[1742307496383,107.87860374,122.34,122.31,28.6157]
[1742307496581,26.07860374,122.34,122.31,28.6157]
[1742307497812,0.063,122.35,122.31,28.6157]
[1742307498008,26.14160374,122.35,122.31,69.4954]
[1742307498304,0.063,122.35,122.32,0.14216157]
[1742307498485,26.07860374,122.37,122.32,34.31058845]
[1742307498684,26.07860374,122.35,122.32,7.8055]
[1742307499090,26.07860374,122.34,122.32,7.8055]
[1742307499702,81.8,122.38,122.32,7.8055]
[1742307499905,26.07860374,122.35,122.33,8.1746]
[1742307500108,26.07860374,122.35,122.33,28.6111]
[1742307500408,26.07860374,122.35,122.33,8.1746]
[1742307501012,26.07860374,122.34,122.33,8.1746]
[1742307501909,26.07860374,122.34,122.31,28.6151]
[1742307502412,26.07860374,122.34,122.31,36.6551]
[1742307502792,26.07860374,122.32,122.31,8.1759]
[1742307503307,107.87860374,122.33,122.31,8.1759]
[1742307503501,81.8,122.33,122.31,8.1759]
[1742307504296,107.87860374,122.33,122.31,8.1759]
[1742307504515,81.8,122.33,122.31,8.1759]
[1742307505190,81.8,122.33,122.32,8.04]
[1742307505392,81.8,122.32,122.3,0.03]
[1742307505601,26.07860374,122.31,122.3,0.03]
[1742307507512,81.8,122.33,122.3,0.03]
[1742307507713,107.87860374,122.33,122.3,0.03]
[1742307507916,26.07860374,122.32,122.3,0.03]
[1742307509696,26.07860374,122.31,122.3,0.03]
[1742307510725,26.07860374,122.32,122.3,0.03]
[1742307510922,26.07860374,122.31,122.3,0.03]
[1742307511600,107.87860374,122.32,122.3,0.03]
[1742307512717,26.07860374,122.31,122.3,0.03]
[1742307512907,107.87860374,122.32,122.3,0.03]
[1742307513723,81.8,122.32,122.3,0.03]
[1742307513910,107.87860374,122.32,122.3,0.03]
[1742307514802,81.8,122.32,122.3,0.17216157]
[1742307515026,0.063,122.34,122.32,0.42648471]
[1742307515328,0.063,122.34,122.33,8.18216157]
[1742307515506,26.14160374,122.34,122.33,8.04]
[1742307516523,26.14160374,122.34,122.32,8.1746]
[1742307516805,26.07860374,122.33,122.31,8.1756]
[1742307517104,26.07860374,122.32,122.31,8.1756]
[1742307519525,26.07860374,122.33,122.31,8.1756]
[1742307519731,26.07860374,122.32,122.31,8.1756]
[1742307520028,26.07860374,122.32,122.3,16.2463]
[1742307520234,26.07860374,122.31,122.3,0.03]
[1742307520417,26.07860374,122.31,122.3,8.2066]
[1742307520612,26.07860374,122.31,122.3,0.03]
[1742307522310,26.07860374,122.32,122.3,0.03]
[1742307523029,43.6715,122.33,122.3,0.03]
[1742307523245,69.75010374,122.33,122.3,0.03]
[1742307523439,36.0755,122.33,122.31,8.18216157]
[1742307523753,0.063,122.34,122.31,9.74356157]
[1742307524116,26.14160374,122.34,122.31,9.6014]
[1742307525743,26.07860374,122.33,122.31,8.04]
[1742307526115,26.14160374,122.34,122.31,8.04]
[1742307526651,0.063,122.34,122.31,8.04]
[1742307527112,26.14160374,122.34,122.31,8.04]
[1742307527722,26.07860374,122.33,122.31,8.04]
[1742307528232,26.07860374,122.32,122.3,0.03]
[1742307528432,26.07860374,122.31,122.3,0.03]
[1742307528645,26.07860374,122.32,122.3,0.03]
[1742307529027,26.07860374,122.33,122.3,0.03]
[1742307529230,0.063,122.34,122.3,26.53508845]
[1742307529951,0.063,122.34,122.31,0.03]
[1742307530653,26.14160374,122.34,122.31,0.03]
[1742307530855,0.063,122.34,122.31,0.03]
[1742307531923,0.063,122.34,122.32,0.14216157]
[1742307532136,0.063,122.34,122.33,8.04]
[1742307534222,0.063,122.34,122.33,8.18216157]
[1742307534423,0.063,122.35,122.33,8.04]
[1742307534731,26.07860374,122.38,122.34,0.14216157]
[1742307535033,36.0755,122.39,122.34,0.14216157]
[1742307535441,26.07860374,122.37,122.34,0.14216157]
[1742307535618,26.07860374,122.36,122.33,8.04]
[1742307536052,26.07860374,122.37,122.33,8.04]
[1742307536230,36.0755,122.39,122.33,8.04]
[1742307536555,26.07860374,122.36,122.33,8.04]
[1742307536959,26.07860374,122.35,122.33,8.04]
[1742307537159,16.71908922,122.35,122.33,8.04]
[1742307537464,16.71908922,122.34,122.33,8.04]
[1742307537835,16.71908922,122.34,122.31,0.03]
[1742307538030,16.71908922,122.32,122.31,0.03]
[1742307539250,26.1352314,122.32,122.31,0.03]
[1742307543345,26.1352314,122.32,122.3,0.03]
[1742307543654,64.78488026,122.31,122.27,0.03]
[1742307543945,72.2704628,122.28,122.27,0.03]
[1742307544946,46.1352314,122.28,122.27,0.03]
[1742307545547,26.1352314,122.28,122.27,0.03]
[1742307546048,26.1352314,122.29,122.27,0.03]
[1742307546636,81.8,122.31,122.27,0.03]
[1742307546860,26.1352314,122.3,122.27,0.03]
[1742307547357,26.1352314,122.3,122.27,0.17216157]
[1742307547854,26.1352314,122.28,122.27,0.03]
[1742307549037,26.1352314,122.29,122.27,0.03]
[1742307549258,26.1352314,122.28,122.27,0.03]
[1742307550081,26.1352314,122.29,122.27,0.03]
[1742307550771,26.1352314,122.28,122.27,0.03]
[1742307552465,26.1352314,122.29,122.27,0.03]
[1742307553373,107.9352314,122.3,122.27,0.03]
[1742307553755,26.1352314,122.29,122.27,0.03]
[1742307554168,26.1352314,122.29,122.27,0.17216157]
[1742307554561,81.8,122.3,122.27,0.17216157]
[1742307554764,81.8,122.3,122.28,8.04]
[1742307554961,73.397,122.3,122.28,8.04]
[1742307555173,73.46,122.34,122.29,0.42648471]
[1742307555369,26.1352314,122.33,122.29,0.42648471]
[1742307555576,26.1352314,122.32,122.29,0.14216157]
[1742307555772,26.1982314,122.32,122.29,0.14216157]
[1742307556286,0.0001,122.32,122.29,0.42648471]
[1742307557056,0.0001,122.32,122.3,8.04]
[1742307557782,26.1353314,122.32,122.3,8.04]
[1742307558270,26.1352314,122.31,122.3,8.04]
[1742307559872,26.1353314,122.32,122.3,8.04]
[1742307560072,0.0001,122.32,122.3,8.04]
[1742307560379,26.1353314,122.32,122.3,8.04]
[1742307560578,26.1352314,122.31,122.3,8.04]
[1742307560765,0.0001,122.32,122.3,8.04]
[1742307562687,26.1352314,122.31,122.3,8.04]
[1742307562979,26.1352314,122.31,122.28,8.18216157]
[1742307563178,26.1352314,122.3,122.28,8.18216157]
[1742307563364,26.1352314,122.31,122.28,8.18216157]
[1742307564067,46.1353314,122.32,122.28,8.18216157]
[1742307564674,0.0001,122.32,122.29,0.28432314]
[1742307565186,26.1353314,122.32,122.29,0.28432314]
[1742307566479,26.1352314,122.31,122.28,8.18216157]
[1742307566887,26.1352314,122.3,122.28,8.18216157]
[1742307567587,26.1352314,122.31,122.28,8.18216157]
[1742307568175,46.1353314,122.32,122.29,0.03]
[1742307568680,26.1352314,122.31,122.29,0.03]
[1742307568872,46.1353314,122.32,122.29,0.03]
[1742307569282,26.1352314,122.31,122.29,0.03]
[1742307569860,26.1352314,122.3,122.29,0.03]
[1742307570982,20.0,122.28,122.27,0.03]
[1742307571180,52.2704628,122.28,122.27,0.03]
[1742307572791,26.1352314,122.28,122.27,0.03]
[1742307574289,125.6674628,122.28,122.27,0.03]
[1742307574472,26.1352314,122.23,122.21,8.18216157]
[1742307574672,26.1352314,122.24,122.21,8.18216157]
[1742307574887,26.1352314,122.25,122.21,8.18216157]
[1742307575870,26.1352314,122.24,122.21,8.18216157]
[1742307576178,73.397,122.27,122.21,8.18216157]
[1742307576489,26.1352314,122.24,122.21,8.18216157]
[1742307576889,26.1352314,122.25,122.21,8.18216157]
[1742307577889,26.1352314,122.24,122.21,8.18216157]
[1742307578993,73.397,122.27,122.21,8.18216157]
[1742307579566,26.1352314,122.25,122.21,8.18216157]
[1742307579771,26.1352314,122.24,122.21,8.18216157]
[1742307580874,73.397,122.27,122.21,8.21216157]
[1742307581071,26.1352314,122.24,122.21,8.21216157]
[1742307582689,73.397,122.27,122.21,34.34739297]
[1742307582886,26.1352314,122.26,122.21,34.34739297]
[1742307583476,73.397,122.27,122.22,45.0692034]
[1742307583679,99.5322314,122.27,122.22,45.0692034]
[1742307584487,99.5322314,122.27,122.24,0.14216157]
[1742307584793,26.1352314,122.27,122.25,8.04]
[1742307585170,46.1352314,122.28,122.25,8.04]
[1742307585697,26.1982314,122.29,122.26,0.14216157]
[1742307586598,26.1352314,122.28,122.26,0.14216157]
[1742307587002,26.1352314,122.28,122.25,8.04]
[1742307587195,26.1982314,122.29,122.26,0.14216157]
[1742307587398,26.1352314,122.28,122.26,0.14216157]
[1742307588001,46.1352314,122.27,122.2,7.9118]
[1742307588187,26.1352314,122.23,122.21,0.17216157]
[1742307588383,26.1352314,122.24,122.21,0.17216157]
[1742307588585,93.397,122.27,122.21,0.17216157]
[1742307588791,26.1352314,122.24,122.21,0.17216157]
[1742307589696,26.1352314,122.25,122.21,0.31432314]
[1742307589904,26.1352314,122.27,122.23,0.28432314]
[1742307590102,26.1352314,122.28,122.24,0.14216157]
[1742307590898,0.063,122.29,122.27,0.14216157]
[1742307591098,0.063,122.29,122.27,35.94039297]
[1742307591504,0.063,122.29,122.27,9.80516157]
[1742307592509,0.063,122.29,122.27,8.18216157]
[1742307593004,0.063,122.29,122.27,8.04]
[1742307593904,0.063,122.29,122.28,0.14216157]
[1742307594297,0.0001,122.32,122.29,1.635]
[1742307594487,0.0001,122.32,122.31,26.41955454]
[1742307594682,0.0001,122.32,122.31,8.32432314]
[1742307596194,0.0001,122.32,122.31,8.18216157]
[1742307597810,0.0001,122.32,122.31,8.04]
[1742307598113,0.0001,122.32,122.31,8.18216157]
[1742307598793,0.0001,122.32,122.31,8.46648471]
[1742307600811,0.0001,122.32,122.31,27.11613357]
[1742307601011,0.0001,122.34,122.32,0.28432314]
[1742307601212,0.0001,122.34,122.32,0.14216157]
[1742307601591,26.1353314,122.34,122.31,8.04]
[1742307601788,26.1352314,122.32,122.28,26.1352314]
[1742307602014,26.1352314,122.31,122.29,8.02]
[1742307602313,26.1352314,122.32,122.29,8.02]
[1742307602511,26.1352314,122.33,122.3,0.14216157]
[1742307602898,26.1352314,122.31,122.26,0.03]
[1742307603105,26.1352314,122.29,122.27,0.14216157]
[1742307603311,73.397,122.33,122.27,0.14216157]
[1742307603512,26.1352314,122.3,122.27,0.14216157]
[1742307603894,73.397,122.33,122.27,0.42648471]
[1742307604095,26.1352314,122.3,122.27,0.14216157]
[1742307605913,0.0001,122.34,122.29,26.27739297]
[1742307606118,0.0001,122.34,122.31,0.14216157]
[1742307606512,26.1353314,122.34,122.31,0.14216157]
[1742307606814,26.1352314,122.33,122.3,8.05]
[1742307607015,26.1352314,122.31,122.3,8.05]
[1742307607319,26.1353314,122.34,122.3,8.05]
[1742307607520,20.0,122.32,122.3,8.05]
[1742307607724,46.1352314,122.32,122.3,8.05]
[1742307607903,26.1352314,122.31,122.3,8.05]
[1742307608216,26.1352314,122.31,122.3,0.03]
[1742307608698,20.0,122.32,122.3,0.03]
[1742307608699,46.1352314,122.32,122.3,0.03]